bitfinex/quotes_ETHUSD_20240601
["timestamp","ask_amount","ask_price","bid_price","bid_amount"]
[1717245744646,0.02325803,3798.4,3797.9,0.636]
[1717245748157,0.02325803,3798.4,3797.5,2.395]
[1717245748357,0.02325803,3798.4,3797.9,0.636]
[1717245754145,2.4162,3798.1,3797.4,7.43]
[1717245754584,0.0237263,3798.0,3797.4,7.43]
[1717245755746,0.0237263,3798.0,3797.4,8.066]
[1717245755946,2.70948869,3798.0,3797.4,8.066]
[1717245756167,2.6567163,3798.0,3797.4,8.066]
[1717245756983,2.6567163,3798.0,3797.4,0.636]
[1717245758145,2.63317,3797.7,3796.9,7.43]
[1717245758378,2.4162,3797.6,3797.0,0.636]
[1717245760382,0.02355464,3797.5,3797.0,0.636]
[1717245761582,2.4162,3797.3,3796.4,7.43]
[1717245761791,2.4162,3797.3,3796.8,0.636]
[1717245761992,0.02346539,3797.2,3796.8,0.636]
[1717245762350,2.4162,3797.3,3796.8,0.636]
[1717245762556,0.0234455,3797.1,3796.8,0.636]
[1717245762784,0.02344572,3797.2,3796.8,0.636]
[1717245762989,0.02344527,3797.0,3796.8,0.636]
[1717245763169,2.4162,3797.3,3796.8,0.636]
[1717245763368,0.02344504,3796.9,3796.8,0.636]
[1717245763567,2.4162,3797.3,3796.8,0.636]
[1717245763776,0.02344504,3796.9,3796.8,0.636]
[1717245764271,2.4162,3797.3,3796.8,0.636]
[1717245764489,0.02344572,3797.2,3796.8,0.636]
[1717245764659,2.4162,3797.3,3796.8,0.636]
[1717245764858,0.02344572,3797.2,3796.8,0.636]
[1717245765163,2.4162,3797.3,3796.8,0.636]
[1717245765677,0.02344572,3797.2,3796.8,0.636]
[1717245765869,2.4162,3797.3,3796.8,0.636]
[1717245766201,0.02344572,3797.2,3796.8,0.636]
[1717245766500,2.4162,3797.3,3796.8,0.636]
[1717245766698,0.02344572,3797.2,3796.8,0.636]
[1717245766875,2.4162,3797.3,3796.8,0.636]
[1717245767070,0.02344572,3797.2,3796.8,0.636]
[1717245767291,2.4162,3797.3,3796.8,0.636]
[1717245767470,0.02344572,3797.2,3796.8,0.636]
[1717245767799,2.4162,3797.3,3796.8,0.636]
[1717245768095,0.02344572,3797.2,3796.8,0.636]
[1717245768308,2.4162,3797.3,3796.8,0.636]
[1717245768456,0.02344572,3797.2,3796.8,0.636]
[1717245768660,2.4162,3797.3,3796.8,0.636]
[1717245768896,0.02344572,3797.2,3796.8,0.636]
[1717245769200,2.4162,3797.3,3796.8,0.636]
[1717245769405,0.0234455,3797.1,3796.8,0.636]
[1717245769701,2.4162,3797.3,3796.8,0.636]
[1717245769867,0.02344572,3797.2,3796.8,0.636]
[1717245770067,2.4162,3797.3,3796.8,0.636]
[1717245770300,0.02344572,3797.2,3796.8,0.636]
[1717245770616,2.4162,3797.3,3796.8,0.636]
[1717245770787,0.0234455,3797.1,3796.8,0.636]
[1717245771187,2.4162,3797.3,3796.8,0.636]
[1717245771387,0.02339933,3797.0,3796.8,0.636]
[1717245771588,2.4162,3797.3,3796.8,0.636]
[1717245771787,0.0233991,3796.9,3796.8,0.636]
[1717245772017,2.4162,3797.3,3796.4,7.43]
[1717245772165,2.4162,3797.3,3796.8,0.636]
[1717245772166,0.0233991,3796.9,3796.8,0.636]
[1717245772499,2.4162,3797.3,3796.8,0.636]
[1717245772700,0.02339979,3797.2,3796.8,0.636]
[1717245772904,2.4162,3797.3,3796.8,0.636]
[1717245773202,0.02339979,3797.2,3796.8,0.636]
[1717245773563,2.4162,3797.3,3796.8,0.636]
[1717245773981,0.02339979,3797.2,3796.8,0.636]
[1717245774377,2.4162,3797.3,3796.8,0.636]
[1717245774576,0.02339956,3797.1,3796.8,0.636]
[1717245774903,0.02339933,3797.0,3796.8,0.636]
[1717245775363,2.4162,3797.3,3796.8,0.636]
[1717245775565,0.0233991,3796.9,3796.8,0.636]
[1717245775767,2.4162,3797.3,3796.8,0.636]
[1717245776399,0.02339979,3797.2,3796.8,0.636]
[1717245776760,2.4162,3797.3,3796.8,0.636]
[1717245776968,0.02339956,3797.1,3796.8,0.636]
[1717245777310,0.02339933,3797.0,3796.8,0.636]
[1717245777510,2.4162,3797.3,3796.8,0.636]
[1717245777809,0.02339979,3797.2,3796.8,0.636]
[1717245778176,2.4162,3797.3,3796.8,0.636]
[1717245778498,0.02339979,3797.2,3796.8,0.636]
[1717245778702,2.4162,3797.3,3796.8,0.636]
[1717245778899,0.02339979,3797.2,3796.8,0.636]
[1717245779099,2.4162,3797.3,3796.8,0.636]
[1717245779286,0.02339979,3797.2,3796.8,0.636]
[1717245779492,2.4162,3797.3,3796.8,0.636]
[1717245779782,0.02339979,3797.2,3796.8,0.636]
[1717245780221,2.4162,3797.3,3796.8,0.636]
[1717245780522,0.02339979,3797.2,3796.8,0.636]
[1717245780689,2.4162,3797.3,3796.8,0.636]
[1717245780892,0.02339979,3797.2,3796.8,0.636]
[1717245781095,2.4162,3797.3,3796.8,0.636]
[1717245781299,0.02339979,3797.2,3796.8,0.636]
[1717245781482,2.4162,3797.3,3796.8,0.636]
[1717245781682,0.02339979,3797.2,3796.8,0.636]
[1717245781884,2.4162,3797.3,3796.8,0.636]
[1717245782121,0.02339979,3797.2,3796.8,0.636]
[1717245782325,2.4162,3797.3,3796.8,0.636]
[1717245782492,0.02339979,3797.2,3796.8,0.636]
[1717245782710,2.4162,3797.3,3796.8,0.636]
[1717245783020,0.02339979,3797.2,3796.8,0.636]
[1717245783409,2.4162,3797.3,3796.8,0.636]
[1717245783610,0.02339956,3797.1,3796.8,0.636]
[1717245783814,0.02340636,3797.2,3796.8,0.636]
[1717245783979,0.0234059,3797.0,3796.8,0.636]
[1717245784180,2.4162,3797.3,3796.8,0.636]
[1717245784380,0.02340567,3796.9,3796.8,0.636]
[1717245784627,2.4162,3797.3,3796.8,0.636]
[1717245784787,0.02340593,3796.9,3796.8,0.636]
[1717245784988,2.4162,3797.3,3796.8,0.636]
[1717245785227,0.02340593,3796.9,3796.8,0.636]
[1717245785422,2.4162,3797.3,3796.8,0.636]
[1717245785634,0.02340593,3796.9,3796.8,0.636]
[1717245785822,2.4162,3797.3,3796.8,0.636]
[1717245786015,0.02340593,3796.9,3796.8,0.636]
[1717245786215,2.4162,3797.3,3796.8,0.636]
[1717245786404,0.02340593,3796.9,3796.8,0.636]
[1717245786604,2.4162,3797.3,3796.8,0.636]
[1717245786832,0.02340593,3796.9,3796.8,0.636]
[1717245786994,2.4162,3797.3,3796.8,0.636]
[1717245787547,0.02340661,3797.2,3796.8,0.636]
[1717245787996,2.4162,3797.3,3796.8,0.636]
[1717245788318,0.02340661,3797.2,3796.8,0.636]
[1717245788491,2.4383,3797.1,3796.8,0.636]
[1717245788692,0.02340616,3797.0,3796.8,0.636]
[1717245801247,0.02340616,3797.0,3796.4,7.43]
[1717245801453,0.02340616,3797.0,3796.8,0.636]
[1717245801614,2.4383,3797.1,3796.8,0.636]
[1717245801923,0.02338976,3797.0,3796.8,0.636]
[1717245805553,0.02338976,3797.0,3796.9,2.4864]
[1717245805726,2.63307,3797.9,3796.9,2.4864]
[1717245806053,2.63307,3797.9,3797.6,0.636]
[1717245808175,2.63307,3797.9,3796.9,2.4864]
[1717245808176,2.63307,3797.9,3797.4,0.636]
[1717245812565,2.63307,3797.9,3797.6,0.636]
[1717245813963,2.63307,3797.9,3797.8,0.636]
[1717245814121,2.63307,3797.9,3797.3,2.4864]
[1717245814329,2.63307,3797.9,3797.6,0.636]
[1717245815672,3.0,3798.5,3797.8,0.636]
[1717245815673,2.3707,3798.4,3797.8,0.636]
[1717245815832,3.24711988,3798.4,3797.8,0.636]
[1717245817654,2.3707,3798.4,3797.8,0.636]
[1717245825497,2.63268,3798.5,3797.8,0.636]
[1717245826299,2.63268,3798.5,3798.0,0.636]
[1717245827709,2.63268,3798.5,3797.7,2.4864]
[1717245827911,0.1248188,3798.6,3798.1,0.636]
[1717245828116,0.1248188,3798.6,3797.9,2.3227]
[1717245828313,0.1248188,3798.6,3798.5,0.636]
[1717245830422,0.1248188,3798.6,3798.3,2.3227]
[1717245830581,0.1248188,3798.6,3798.5,0.636]
[1717245833760,0.1248188,3798.6,3798.3,2.3227]
[1717245834045,0.1248188,3798.6,3798.4,0.636]
[1717245834914,0.1248188,3798.6,3798.0,2.55497]
[1717245835111,0.1248188,3798.6,3798.4,0.636]
[1717245836455,0.1248188,3798.6,3798.0,2.3227]
[1717245836609,0.1248188,3798.6,3798.5,0.636]
[1717245838714,0.1248188,3798.6,3798.5,2.3227]
[1717245838952,0.1248188,3798.6,3798.5,2.9587]
[1717245842436,0.1248188,3798.6,3798.1,2.3227]
[1717245842775,0.012383,3799.4,3797.8,7.43]
[1717245842776,2.4357,3802.1,3799.9,0.9197]
[1717245842975,2.4357,3802.1,3800.0,2.63157]
[1717245842976,2.63046,3801.7,3800.0,2.63157]
[1717245843266,3.26654,3801.5,3800.6,0.636]
[1717245843571,3.26654,3801.5,3800.8,0.636]
[1717245843572,2.63054,3801.5,3800.8,0.636]
[1717245844345,2.63054,3801.5,3800.0,2.63157]
[1717245844548,0.2893586,3801.4,3800.9,0.636]
[1717245845136,0.02358863,3801.3,3800.9,0.636]
[1717245845342,0.02358863,3801.3,3800.0,2.63157]
[1717245845538,0.02358863,3801.3,3800.8,0.636]
[1717245845734,0.02358863,3801.3,3800.0,2.63157]
[1717245845969,0.02358863,3801.3,3800.8,0.636]
[1717245847166,0.02358863,3801.3,3800.6,0.636]
[1717245849055,0.07636102,3801.3,3800.6,0.636]
[1717245849261,2.63077,3801.2,3800.0,2.63157]
[1717245849577,0.29437172,3801.1,3800.6,0.636]
[1717245849755,0.31914378,3801.1,3800.6,0.636]
[1717245851542,0.31914378,3801.1,3800.0,2.63157]
[1717245851736,0.636,3800.7,3799.5,7.43]
[1717245851941,0.636,3800.7,3799.7,0.636]
[1717245852358,0.02477092,3800.6,3799.7,1.052973]
[1717245852548,0.636,3800.5,3799.5,8.066]
[1717245852967,3.26723,3800.5,3799.5,7.43]
[1717245853279,3.26742,3800.3,3799.5,7.43]
[1717245853582,3.26742,3800.3,3799.2,0.636]
[1717245853768,0.02457995,3800.2,3799.2,0.636]
[1717245854568,2.63159,3800.0,3798.8,2.63237]
[1717245854770,2.63159,3800.0,3799.1,0.636]
[1717245854974,0.02457927,3799.9,3799.2,2.3548]
[1717245855175,0.02457927,3799.9,3799.8,0.636]
[1717245855360,2.6312,3800.6,3799.8,0.636]
[1717245855561,2.6312,3800.6,3800.1,0.636]
[1717245855946,3.19432,3800.6,3800.1,0.636]
[1717245856140,2.6312,3800.6,3799.9,0.636]
[1717245856481,0.17119441,3801.8,3799.7,2.63176]
[1717245856482,2.63078,3801.2,3799.7,2.63176]
[1717245856779,2.63109,3800.7,3799.4,2.3548]
[1717245857076,0.636,3800.6,3799.6,0.636]
[1717245857444,2.63131,3800.4,3799.6,0.636]
[1717245857777,0.326731,3800.3,3799.6,0.636]
[1717245859268,0.326731,3800.3,3799.1,7.43]
[1717245859581,2.63131,3800.4,3799.7,0.636]
[1717245860085,2.63131,3800.4,3800.1,0.636]
[1717245860444,2.63131,3800.4,3799.9,0.636]
[1717245861678,0.02373092,3800.3,3799.9,0.636]
[1717245865272,0.02373092,3800.3,3800.2,0.636]
[1717245865509,0.02373092,3800.3,3800.2,0.29292]
[1717245865804,0.636,3801.7,3800.2,0.92892]
[1717245865958,0.636,3801.7,3800.7,0.636]
[1717245866158,0.02372069,3801.6,3800.7,0.636]
[1717245866994,2.63061,3801.4,3800.7,0.636]
[1717245867377,0.02383808,3801.3,3800.7,0.636]
[1717245867563,0.26544481,3801.2,3800.4,0.636]
[1717245867894,0.02389332,3801.1,3800.4,0.636]
[1717245868100,0.02389332,3801.1,3800.0,2.2932]
[1717245868503,2.63086,3801.1,3800.0,2.2932]
[1717245873209,5.09326,3801.1,3800.0,2.2932]
[1717245873512,0.02389309,3801.0,3800.0,2.2932]
[1717245877296,1.6408188,3802.4,3799.7,1.052953]
[1717245877297,2.5872188,3802.4,3800.3,5.0682]
[1717245877483,2.5872188,3802.4,3800.9,1.516]
[1717245877678,2.6301,3802.2,3800.9,1.516]
[1717245877885,2.63031,3801.9,3800.9,1.516]
[1717245878192,2.63031,3801.9,3800.8,2.63095]
[1717245878423,0.0239964,3801.8,3800.8,2.63095]
[1717245879716,2.6304,3801.7,3800.5,1.516]
[1717245880215,0.02399595,3801.6,3800.5,1.516]
[1717245880434,0.02399595,3801.6,3801.1,1.516]
[1717245880731,3.0,3802.1,3801.1,1.516]
[1717245881232,0.02349168,3802.0,3801.1,1.516]
[1717245881705,3.0,3802.3,3800.7,1.516]
[1717245881706,0.02358971,3801.9,3800.7,1.516]
[1717245882086,2.63014,3802.1,3800.7,1.516]
[1717245882287,0.02358949,3801.8,3800.7,1.516]
[1717245882598,0.02359012,3802.0,3800.7,1.516]
[1717245882910,0.02358989,3801.9,3800.7,1.516]
[1717245884594,2.4693,3801.8,3800.7,1.516]
[1717245884874,0.02358926,3801.7,3800.7,1.516]
[1717245886714,2.4693,3801.8,3800.7,1.516]
[1717245887084,0.02358926,3801.7,3800.7,1.516]
[1717245887518,2.4693,3801.8,3800.6,2.2932]
[1717245887812,2.4693,3801.8,3801.1,0.632]
[1717245888016,0.02358926,3801.7,3801.1,0.632]
[1717245888322,0.0827338,3803.3,3801.6,0.632]
[1717245888323,2.62975,3802.7,3801.6,0.632]
[1717245888525,2.62975,3802.7,3801.8,0.632]
[1717245888680,3.0,3802.6,3801.8,0.632]
[1717245889319,3.0,3802.6,3801.3,2.4759]
[1717245889495,3.0,3802.6,3801.8,0.632]
[1717245889882,3.0,3802.6,3801.4,0.30809813]
[1717245890082,3.0,3802.6,3801.8,0.632]
[1717245890840,2.62999,3802.3,3801.7,0.632]
[1717245891001,2.3204,3802.2,3801.5,0.632]
[1717245891341,2.63016,3802.1,3801.4,0.632]
[1717245891534,2.63016,3802.1,3801.1,7.43]
[1717245891535,2.63016,3802.1,3801.2,0.632]
[1717245891741,2.63029,3801.9,3801.2,0.632]
[1717245892426,2.63029,3801.9,3801.4,0.632]
[1717245893437,2.63029,3801.9,3800.7,10.06107]
[1717245893438,2.63029,3801.9,3801.2,0.632]
[1717245894486,2.63029,3801.9,3800.7,10.06107]
[1717245894487,2.63029,3801.9,3801.4,0.632]
[1717245894725,2.63029,3801.9,3801.2,0.632]
[1717245895425,3.125359,3801.9,3800.7,10.06107]
[1717245895612,3.125359,3801.9,3801.1,0.632]
[1717245895789,3.125359,3801.9,3800.9,0.632]
[1717245896522,0.1248188,3802.4,3801.2,2.63074]
[1717245896741,2.63001,3802.3,3801.6,0.632]
[1717245896891,3.0,3802.2,3801.6,0.632]
[1717245897242,3.57548288,3802.2,3801.6,0.632]
[1717245897724,3.57548288,3802.2,3801.2,2.63074]
[1717245899019,2.3204,3802.1,3801.2,2.63074]
[1717245901930,2.3204,3802.1,3799.5,0.82317435]
[1717245901931,2.63089,3801.0,3799.7,2.4457]
[1717245902097,2.77237118,3801.0,3799.7,2.4457]
[1717245902493,2.63089,3801.0,3799.7,2.4457]
[1717245902903,4.95129,3801.0,3799.8,0.3498685]
[1717245905611,4.95129,3801.0,3799.8,1.8658685]
[1717245907335,4.95129,3801.0,3799.8,0.3498685]
[1717245910037,2.63116,3800.6,3799.3,7.43]
[1717245910231,2.63133,3800.4,3799.3,7.43]
[1717245910433,2.63149,3800.2,3799.3,7.43]
[1717245910637,2.63149,3800.2,3798.9,2.63227]
[1717245911009,2.63149,3800.2,3798.9,3.68544]
[1717245912601,2.63149,3800.2,3798.9,2.63227]
[1717245913503,2.63149,3800.2,3798.9,3.68545]
[1717245914530,2.63149,3800.2,3798.9,2.63227]
[1717245915420,2.63149,3800.2,3798.9,3.685449]
[1717245915620,2.63149,3800.2,3798.9,2.63227]
[1717245918635,2.3671,3800.1,3798.9,2.63227]
[1717245924622,2.6316,3800.0,3798.9,2.63227]
[1717245924823,2.6316,3800.0,3799.0,0.3685477]
[1717245926957,2.63182,3799.7,3798.7,1.053217]
[1717245927131,2.4172,3799.6,3798.4,10.06267]
[1717245927355,2.4172,3799.6,3798.4,2.63267]
[1717245927562,2.4172,3799.6,3798.7,0.632]
[1717245927959,2.63198,3799.5,3798.7,0.632]
[1717245933770,2.640493,3799.5,3798.7,0.632]
[1717245935257,2.640493,3799.5,3798.9,0.632]
[1717245935457,2.640493,3799.5,3798.7,0.632]
[1717245935767,2.640493,3799.5,3798.7,0.99532711]
[1717245937996,2.640493,3799.5,3798.8,2.4958]
[1717245937997,0.008513,3799.5,3798.8,2.4958]
[1717245938169,0.008513,3799.5,3799.4,0.632]
[1717245946167,0.008513,3799.5,3799.4,2.9478]
[1717245957314,0.008513,3799.5,3799.4,0.632]
[1717245957518,0.008513,3799.5,3799.4,1.06921202]
[1717245957724,0.008513,3799.5,3799.4,0.43721202]
[1717245957920,0.008513,3799.5,3799.4,1.06921202]
[1717245960380,0.008513,3799.5,3799.4,0.632]
[1717245964139,0.008513,3799.5,3799.3,2.63205]
[1717245964356,2.258813,3799.5,3799.4,0.632]
[1717245968041,2.258813,3799.5,3799.4,3.26399]
[1717245968042,0.008513,3799.5,3799.4,3.26399]
[1717245968550,0.008513,3799.5,3799.4,3.590389]
[1717245976279,0.008513,3799.5,3799.4,6.601389]
[1717245977143,0.008513,3799.5,3799.4,9.376389]
[1717245978279,0.008513,3799.5,3799.4,8.744389]
[1717245978582,0.008513,3799.5,3799.4,6.601389]
[1717245978782,0.008513,3799.5,3799.4,3.508389]
[1717245978947,0.008513,3799.5,3799.4,4.140389]
[1717245979142,0.008513,3799.5,3799.4,3.590389]
[1717245984030,3.0,3801.2,3799.4,3.590389]
[1717245984031,2.3729,3802.4,3800.0,2.63156]
[1717245984315,2.3729,3802.4,3799.4,4.140339]
[1717245984316,2.3729,3802.4,3801.4,0.632]
[1717245984488,2.3729,3802.4,3802.0,0.632]
[1717245985079,2.3729,3802.4,3802.3,0.632]
[1717245985578,5.10982,3802.9,3802.3,0.632]
[1717245985775,0.40095051,3802.7,3801.6,2.63041]
[1717245985978,0.40095051,3802.7,3802.1,0.632]
[1717245986435,0.1254441,3802.7,3802.5,0.632]
[1717245986716,0.1254441,3802.7,3802.3,0.632]
[1717245987498,0.1254441,3802.7,3802.0,2.63019]
[1717245989976,2.4802,3802.6,3801.5,7.43]
[1717245990220,0.26056441,3802.5,3801.5,7.43]
[1717245991109,2.89042441,3802.5,3801.5,7.43]
[1717245995559,2.62986,3802.5,3801.5,7.43]
[1717246000431,2.6301,3802.2,3801.5,7.43]
[1717246004060,3.0,3802.4,3801.5,7.43]
[1717246004370,2.4802,3802.6,3801.5,10.06053]
[1717246004673,2.4802,3802.6,3801.5,11.57553]
[1717246004888,2.4802,3802.6,3801.6,0.44150023]
[1717246005665,2.4802,3802.6,3801.7,2.63038]
[1717246006895,0.1254441,3802.7,3801.9,2.63019]
[1717246007296,0.1254441,3802.7,3801.9,4.14519]
[1717246007487,0.1254441,3802.7,3802.3,4.14493]
[1717246007685,0.1254441,3802.7,3802.4,0.3590389]
[1717246009288,0.1254441,3802.7,3802.3,2.62993]
[1717246014714,0.1254441,3802.7,3802.4,0.55]
[1717246015637,0.1254441,3802.7,3802.5,2.62984]
[1717246015778,0.1254441,3802.7,3802.6,0.55]
[1717246019889,0.1254441,3802.7,3802.6,2.11712901]
[1717246020297,0.1254441,3802.7,3802.6,0.55]
[1717246020782,0.1254441,3802.7,3802.6,2.065]
[1717246022547,0.1254441,3802.7,3802.6,4.84]
[1717246023368,0.1254441,3802.7,3802.6,7.268]
[1717246023670,0.0827338,3803.3,3802.7,2.428]
[1717246023869,0.0827338,3803.3,3803.2,6.718]
[1717246024179,2.3276,3805.0,3803.7,2.62899]
[1717246024323,2.3276,3805.0,3803.2,10.268]
[1717246024324,2.3276,3805.0,3803.8,0.55]
[1717246024523,2.3276,3805.0,3803.9,4.14383]
[1717246024723,2.3276,3805.0,3804.0,3.0]
[1717246025257,2.3276,3805.0,3804.0,4.515]
[1717246025834,2.3276,3805.0,3803.9,2.62883]
[1717246026361,2.3276,3805.0,3804.0,0.55]
[1717246026880,2.3276,3805.0,3803.9,2.62883]
[1717246027370,2.3276,3805.0,3804.0,0.55]
[1717246027673,2.3276,3805.0,3804.1,0.469383]
[1717246028370,4.98863,3805.5,3804.3,2.62856]
[1717246030878,4.98863,3805.5,3804.1,7.43]
[1717246031046,3.0,3805.9,3804.1,7.43]
[1717246031047,2.62815,3805.0,3804.1,7.43]
[1717246032538,2.3608,3804.9,3804.1,7.43]
[1717246032737,2.859695,3804.9,3804.1,7.43]
[1717246032960,2.62826,3804.8,3804.1,7.43]
[1717246033833,2.62845,3804.6,3804.1,7.43]
[1717246034370,2.62854,3804.4,3804.1,7.43]
[1717246034573,0.498934,3804.3,3804.1,7.43]
[1717246034773,2.62854,3804.4,3804.1,7.43]
[1717246035481,2.62854,3804.4,3803.4,7.43]
[1717246036584,2.62879,3804.1,3803.4,7.43]
[1717246036760,2.3608,3804.0,3803.0,19.67]
[1717246037288,2.62879,3804.1,3803.0,19.67]
[1717246037486,2.3608,3805.0,3803.8,1.515]
[1717246037690,0.14923919,3806.9,3804.7,2.62832]
[1717246037889,1.314876,3808.7,3804.9,1.515]
[1717246037890,2.3608,3806.4,3804.9,1.515]
[1717246038094,2.3608,3806.8,3805.0,0.652842]
[1717246038760,2.3608,3806.8,3804.8,2.3851]
[1717246038761,2.3608,3806.8,3805.1,1.515]
[1717246038963,4.98773,3806.8,3805.2,2.62798]
[1717246039361,3.0,3806.7,3805.2,2.62798]
[1717246039955,2.6272,3806.4,3804.8,2.3851]
[1717246040158,2.3608,3806.0,3804.5,4.1434]
[1717246040372,3.126377,3805.9,3804.2,1.56361854]
[1717246040576,2.62756,3805.9,3804.4,2.6285]
[1717246040758,2.62771,3805.6,3803.8,4.19253854]
[1717246041488,2.62771,3805.6,3803.8,2.62892]
[1717246041693,4.98869,3805.4,3803.8,2.62892]
[1717246041887,4.98869,3805.4,3804.1,1.515]
[1717246041888,3.13203624,3805.4,3804.1,1.515]
[1717246042700,2.62789,3805.4,3804.5,1.515]
[1717246043486,3.0,3805.9,3804.6,0.55]
[1717246043788,2.3608,3806.1,3804.6,2.9351]
[1717246044164,3.0,3806.2,3804.7,5.40326]
[1717246044373,2.62724,3806.3,3804.9,1.515]
[1717246044586,2.62724,3806.3,3805.0,0.484]
[1717246044898,2.62724,3806.3,3804.9,1.515]
[1717246045991,2.62724,3806.3,3805.0,2.62807]
[1717246047488,2.62724,3806.3,3805.3,1.515]
[1717246047993,2.62724,3806.3,3805.0,3.679581]
[1717246048194,2.62724,3806.3,3805.1,0.55]
[1717246049586,0.1254441,3806.5,3805.3,2.3778]
[1717246051974,2.7525341,3806.5,3805.3,2.3778]
[1717246052298,0.1254441,3806.5,3805.4,2.62781]
[1717246053801,2.3324,3806.4,3805.4,2.62781]
[1717246054009,2.3324,3806.4,3805.2,7.43]
[1717246054307,2.62725,3806.3,3805.2,7.43]
[1717246057868,2.62749,3806.0,3805.2,7.43]
[1717246058070,2.3324,3805.9,3805.2,7.43]
[1717246058292,2.62757,3805.8,3805.2,7.43]
[1717246058768,2.62757,3805.8,3804.8,7.43]
[1717246058970,3.123567,3805.8,3804.8,7.43]
[1717246059711,2.3324,3806.4,3804.8,7.43]
[1717246060007,2.3324,3805.7,3804.8,7.43]
[1717246060687,2.68053239,3805.6,3804.8,7.43]
[1717246060875,2.6279,3805.4,3804.8,7.43]
[1717246063475,2.62816,3805.0,3804.8,7.43]
[1717246064229,2.890976,3805.0,3804.8,7.43]
[1717246064569,2.890976,3805.0,3804.0,7.43]
[1717246064770,2.62816,3805.0,3804.0,7.43]
[1717246066108,4.515,3805.7,3804.1,2.4508]
[1717246066109,3.0,3805.7,3804.1,2.4508]
[1717246066310,2.62747,3806.0,3804.6,2.62836]
[1717246066616,2.62747,3806.0,3804.9,2.62815]
[1717246067096,2.7525441,3806.5,3804.9,2.62815]
[1717246067304,2.7525441,3806.5,3805.0,0.0525466]
[1717246067497,2.7525441,3806.5,3804.9,2.62815]
[1717246067698,3.0,3806.4,3804.9,2.62815]
[1717246068078,2.62732,3806.2,3804.9,2.62815]
[1717246068332,0.562732,3806.1,3804.6,0.28403585]
[1717246068481,0.562732,3806.1,3804.5,7.43]
[1717246068816,2.62749,3806.0,3804.6,2.62839]
[1717246068981,2.62749,3806.0,3804.6,3.17839]
[1717246069381,2.62749,3806.0,3804.6,3.46242585]
[1717246069779,2.62749,3806.0,3804.6,3.17839]
[1717246070314,2.62749,3806.0,3804.6,3.46243654]
[1717246070514,2.62749,3806.0,3804.8,2.62824]
[1717246070877,0.1254441,3806.5,3804.8,2.62824]
[1717246072427,0.1254441,3806.5,3805.2,2.62797]
[1717246073713,0.1254441,3806.5,3805.7,2.62758]
[1717246075325,0.02311523,3806.4,3805.7,2.62758]
[1717246075552,0.1254441,3806.5,3805.8,0.262758]
[1717246075721,0.02311523,3806.4,3805.8,0.262758]
[1717246075922,0.1254441,3806.5,3805.8,0.262758]
[1717246076817,0.1254441,3806.5,3805.9,3.17749]
[1717246077117,0.1254441,3806.5,3805.9,2.62749]
[1717246078049,0.1254441,3806.5,3806.1,2.62733]
[1717246079569,0.1254441,3806.5,3806.4,1.515]
[1717246080719,0.1254441,3806.5,3806.3,2.62722]
[1717246081188,0.1254441,3806.5,3805.8,2.62755]
[1717246082982,0.1254441,3806.5,3805.5,7.43]
[1717246083400,2.62715,3806.4,3805.5,7.43]
[1717246083608,0.1254441,3806.5,3805.5,10.05773]
[1717246084722,0.1254441,3806.5,3805.6,2.2503]
[1717246085022,0.1254441,3806.5,3805.8,2.62752]
[1717246087515,0.1254441,3806.5,3805.5,7.43]
[1717246087816,2.2922,3806.4,3805.5,7.43]
[1717246091597,2.62724,3806.3,3805.5,7.43]
[1717246094300,2.2922,3805.8,3804.9,7.43]
[1717246095122,2.62768,3805.7,3804.9,7.43]
[1717246095784,2.62796,3805.3,3804.9,7.43]
[1717246096497,2.62805,3805.1,3804.9,7.43]
[1717246099444,2.62805,3805.1,3803.9,7.43]
[1717246099755,2.2922,3805.2,3803.9,7.43]
[1717246099756,2.62833,3804.7,3803.9,7.43]
[1717246102812,4.91995,3805.6,3804.1,4.87901]
[1717246104069,2.62735,3806.2,3804.5,2.62841]
[1717246104249,2.62735,3806.2,3804.7,2.62829]
[1717246104757,2.62735,3806.2,3804.8,0.05255371]
[1717246106255,2.62735,3806.2,3804.7,2.62829]
[1717246106455,2.62766,3805.7,3804.6,7.43]
[1717246106658,1.513,3806.0,3804.6,7.43]
[1717246106863,0.37662,3805.9,3804.6,7.43]
[1717246107277,4.513,3806.0,3804.6,7.43]
[1717246107548,0.1254441,3806.5,3804.6,10.05837]
[1717246108035,2.62755,3805.9,3804.6,10.05837]
[1717246112056,2.62817,3805.0,3804.6,7.43]
[1717246112256,2.62817,3805.0,3804.1,2.2503]
[1717246112458,2.62817,3805.0,3804.2,0.22503]
[1717246114308,4.88098,3805.5,3804.2,0.22503]
[1717246115479,2.62778,3805.5,3804.2,0.22503]
[1717246118010,2.62778,3805.5,3804.5,1.513]
[1717246119917,2.62778,3805.5,3804.6,2.263]
[1717246120076,2.62741,3806.1,3804.6,2.263]
[1717246120277,2.62741,3806.1,3804.7,0.3776]
[1717246121113,2.62741,3806.1,3804.8,2.263]
[1717246126203,2.62741,3806.1,3804.9,0.55]
[1717246128939,2.62741,3806.1,3805.0,2.62811]
[1717246129137,2.62741,3806.1,3805.1,2.2871]